bitfinex-derivatives/quotes_BTCF0:USTF0_20250527
["timestamp","ask_amount","ask_price","bid_price","bid_amount"]
[1748358450983,0.118,109380.0,109370.0,0.95102598]
[1748358451394,0.0607,109380.0,109370.0,0.95102598]
[1748358452195,0.4186,109390.0,109380.0,0.1827766]
[1748358452391,0.1207,109390.0,109380.0,0.3618766]
[1748358452694,0.1207,109390.0,109380.0,0.3718766]
[1748358453495,0.4825,109390.0,109380.0,0.3718766]
[1748358454806,0.4825,109390.0,109380.0,0.8143566]
[1748358454995,0.1217,109390.0,109380.0,0.8143566]
[1748358455190,0.4825,109390.0,109380.0,0.8143566]
[1748358455692,0.1217,109390.0,109380.0,0.8143566]
[1748358456890,0.1217,109390.0,109380.0,0.8153566]
[1748358458805,0.1207,109390.0,109380.0,0.8153566]
[1748358459103,0.1207,109390.0,109380.0,0.8163566]
[1748358460892,0.0629,109390.0,109380.0,0.8163566]
[1748358461088,0.1244,109390.0,109380.0,0.8163566]
[1748358462598,0.1244,109390.0,109380.0,0.3738766]
[1748358462898,0.1244,109390.0,109380.0,0.8162366]
[1748358463093,0.4852,109390.0,109380.0,0.2948166]
[1748358463297,1.0179599,109390.0,109380.0,0.2948166]
[1748358463707,0.8352,109390.0,109380.0,0.2949366]
[1748358463901,0.5452,109390.0,109380.0,0.2949366]
[1748358464204,0.1244,109390.0,109380.0,0.3627366]
[1748358464408,0.1244,109390.0,109380.0,0.4237366]
[1748358465500,1.12973611,109420.0,109410.0,0.1827265]
[1748358465501,0.4450117,109420.0,109410.0,0.1827265]
[1748358465701,0.97157537,109420.0,109410.0,0.2927665]
[1748358466003,0.5629117,109420.0,109410.0,0.3605665]
[1748358466395,0.2021117,109420.0,109410.0,0.3605665]
[1748358466902,0.1179,109420.0,109410.0,0.3605665]
[1748358467103,0.15656997,109420.0,109410.0,0.3605665]
[1748358467408,0.4787,109420.0,109410.0,0.2505265]
[1748358467599,0.8387,109420.0,109410.0,0.3505265]
[1748358468007,0.8397,109420.0,109410.0,0.35432309]
[1748358468304,0.8397,109420.0,109410.0,0.35532309]
[1748358468500,0.8397,109420.0,109410.0,0.36935492]
[1748358468703,0.8387,109420.0,109410.0,0.37047492]
[1748358469105,1.25887893,109420.0,109410.0,0.30887833]
[1748358469414,1.0214098,109420.0,109410.0,0.30875833]
[1748358469608,1.0214098,109420.0,109410.0,0.30887833]
[1748358470106,1.0214098,109420.0,109410.0,0.19887833]
[1748358470305,1.0214098,109420.0,109410.0,0.30887833]
[1748358470706,1.0214098,109420.0,109410.0,0.19887833]
[1748358470912,1.0214098,109420.0,109410.0,0.30887833]
[1748358471403,0.54712269,109420.0,109410.0,0.30887833]
[1748358471600,0.42922269,109420.0,109410.0,0.60464746]
[1748358471908,0.3608,109430.0,109420.0,0.1827098]
[1748358471909,0.1184,109430.0,109420.0,0.1827098]
[1748358472101,0.1184,109430.0,109420.0,0.6931698]
[1748358472704,0.67586913,109430.0,109420.0,0.3708]
[1748358472902,1.07500814,109430.0,109420.0,0.1827098]
[1748358473103,1.21936223,109430.0,109420.0,0.1848298]
[1748358473414,0.9818931,109430.0,109420.0,0.1847098]
[1748358473605,0.7992,109430.0,109420.0,0.1868298]
[1748358473805,0.9818931,109430.0,109420.0,0.1868298]
[1748358474712,0.9828931,109430.0,109420.0,0.1848298]
[1748358474910,1.22036223,109430.0,109420.0,0.1848298]
[1748358475411,1.22036223,109430.0,109420.0,0.2927098]
[1748358475605,1.26068456,109430.0,109420.0,0.2928298]
[1748358476205,1.29907938,109430.0,109420.0,0.2928298]
[1748358476708,0.74161025,109430.0,109420.0,0.2928298]
[1748358476917,1.08161025,109430.0,109420.0,0.2928298]
[1748358477106,1.31907938,109430.0,109420.0,0.2928298]
[1748358477312,1.31907938,109430.0,109420.0,0.2927098]
[1748358477916,1.28068456,109430.0,109420.0,0.2927098]
[1748358478109,1.04321543,109430.0,109420.0,0.2928298]
[1748358478919,1.48525543,109430.0,109420.0,0.1828298]
[1748358479119,1.48525543,109430.0,109420.0,0.2926298]
[1748358481709,1.48525543,109430.0,109420.0,0.1828298]
[1748358481922,1.71544422,109430.0,109420.0,0.1828298]
[1748358482215,1.75299801,109430.0,109420.0,0.1828298]
[1748358482515,1.75299801,109430.0,109420.0,0.1827098]
[1748358482816,1.57020648,109430.0,109420.0,0.1827098]
[1748358483114,1.75289958,109430.0,109420.0,0.1828298]
[1748358483307,1.52271079,109430.0,109420.0,0.2406298]
[1748358483503,0.52052233,109430.0,109420.0,0.2406298]
[1748358483710,0.66052233,109430.0,109420.0,0.2406298]
[1748358484513,0.84321543,109430.0,109420.0,0.2406298]
[1748358485124,0.84321543,109430.0,109420.0,0.2989298]
[1748358485426,0.15972233,109430.0,109420.0,0.52911859]
[1748358485820,0.15972233,109430.0,109420.0,0.2989298]
[1748358485821,0.34241543,109430.0,109420.0,0.2989298]
[1748358486129,0.70321543,109430.0,109420.0,0.3574298]
[1748358486323,0.70321543,109430.0,109420.0,0.4086098]
[1748358486634,0.70321543,109430.0,109420.0,0.3503098]
[1748358486635,1.08321543,109430.0,109420.0,0.3503098]
[1748358486933,1.08321543,109430.0,109420.0,0.3504298]
[1748358487232,0.40212233,109430.0,109420.0,0.2406298]
[1748358487429,0.40212233,109430.0,109420.0,1.00566348]
[1748358487430,0.04132233,109430.0,109420.0,1.00566348]
[1748358487630,0.10242233,109430.0,109420.0,0.8397298]
[1748358488027,0.16352233,109430.0,109420.0,0.8397298]
[1748358488518,0.16452233,109430.0,109420.0,0.8397298]
[1748358488925,0.16452233,109430.0,109420.0,0.6714298]
[1748358489120,0.39521543,109430.0,109420.0,0.3504298]
[1748358489327,0.39521543,109430.0,109420.0,0.3503098]
[1748358489626,0.39521543,109430.0,109420.0,0.3504298]
[1748358489627,0.81651543,109430.0,109420.0,0.3504298]
[1748358490023,0.03932233,109430.0,109420.0,0.6214298]
[1748358490233,0.03932233,109430.0,109420.0,1.2345098]
[1748358490234,0.03832233,109430.0,109420.0,1.2345098]
[1748358490527,0.15872233,109430.0,109420.0,1.2345098]
[1748358490727,3e-08,109430.0,109420.0,2.50263148]
[1748358491327,3e-08,109430.0,109420.0,2.50663148]
[1748358492020,0.3608,109470.0,109460.0,0.1826434]
[1748358492331,0.7809,109470.0,109460.0,0.1826434]
[1748358492726,0.7809,109470.0,109460.0,0.3075434]
[1748358493438,0.9635267,109470.0,109460.0,0.2443434]
[1748358493628,0.9635267,109470.0,109460.0,0.1826434]
[1748358493931,0.5890467,109490.0,109480.0,0.18261]
[1748358494127,1.0167933,109490.0,109480.0,0.18161]
[1748358494325,0.18261,109480.0,109470.0,0.27405876]
[1748358494526,0.93431,109480.0,109470.0,0.27405876]
[1748358495228,0.99631,109480.0,109470.0,0.33415876]
[1748358495427,0.8137,109480.0,109470.0,0.33415876]
[1748358495734,0.999311,109480.0,109470.0,0.33415876]
[1748358497435,1.001311,109480.0,109470.0,0.33415876]
[1748358498640,1.0013109,109480.0,109470.0,0.34794605]
[1748358500040,1.0013109,109480.0,109470.0,0.28784605]
[1748358500541,1.0013109,109480.0,109470.0,0.28796605]
[1748358500939,1.0013109,109480.0,109470.0,0.34676605]
[1748358502530,1.0013109,109480.0,109470.0,0.28796605]
[1748358503740,1.68428458,109480.0,109470.0,0.19667245]
[1748358503942,1.68428458,109480.0,109470.0,0.19655245]
[1748358504144,1.4483509,109480.0,109470.0,0.19667245]
[1748358505732,1.4483509,109480.0,109470.0,0.01404485]
[1748358505939,1.4483509,109480.0,109470.0,0.00025756]
[1748358505940,1.81269616,109480.0,109470.0,0.00025756]
[1748358506441,1.57676248,109480.0,109470.0,0.00013756]
[1748358506648,1.81269616,109480.0,109470.0,0.00025756]
[1748358506836,1.77562859,109480.0,109470.0,0.00025756]
[1748358507145,1.81270339,109480.0,109470.0,0.18288516]
[1748358507641,1.36566339,109480.0,109470.0,0.18288516]
[1748358507841,1.57716971,109480.0,109470.0,0.18288516]
[1748358508034,1.4857857,109480.0,109470.0,0.18288516]
[1748358508547,1.4856657,109480.0,109470.0,0.18288516]
[1748358508937,1.4485909,109480.0,109470.0,0.18288516]
[1748358509127,1.4484709,109480.0,109470.0,0.18288516]
[1748358509531,1.4484709,109480.0,109470.0,0.00025756]
[1748358509532,1.48554745,109480.0,109470.0,0.00025756]
[1748358509937,1.7155212,109480.0,109470.0,0.00025756]
[1748358510249,1.7152412,109480.0,109470.0,0.18288516]
[1748358510439,1.7523206,109480.0,109470.0,0.18288516]
[1748358510746,1.71524405,109480.0,109470.0,0.18288516]
[1748358510932,1.53263315,109480.0,109450.0,0.3543977]
[1748358511141,0.5434443,109460.0,109450.0,0.3409629]
[1748358511444,0.9134443,109460.0,109450.0,0.3409629]
[1748358511639,1.0345443,109460.0,109450.0,0.11276]
[1748358511837,0.9760443,109460.0,109450.0,0.52527475]
[1748358512142,0.8145443,109460.0,109450.0,0.64437475]
[1748358512644,0.8145443,109460.0,109450.0,0.64449475]
[1748358513640,0.8145443,109460.0,109450.0,0.64549475]
[1748358514138,0.8145443,109460.0,109450.0,0.70909475]
[1748358514527,0.7745443,109460.0,109450.0,0.70909475]
[1748358514736,1.0345443,109460.0,109450.0,0.00112]
[1748358514935,1.43248037,109460.0,109450.0,0.001]
[1748358515135,1.66245412,109460.0,109450.0,0.00112]
[1748358515351,1.43248037,109460.0,109450.0,0.001]
[1748358515534,1.43248037,109460.0,109450.0,0.00112]
[1748358515535,1.66245412,109460.0,109450.0,0.00112]
[1748358515739,1.43248037,109460.0,109450.0,0.00112]
[1748358515943,1.66245412,109460.0,109450.0,0.00112]
[1748358516335,1.43348037,109460.0,109450.0,0.182781]
[1748358516542,1.43348037,109460.0,109450.0,0.00012]
[1748358516846,0.111,109460.0,109450.0,0.97203475]
[1748358517043,0.173,109460.0,109450.0,1.45523475]
[1748358517236,0.173,109460.0,109450.0,1.51463475]
[1748358517436,0.064,109460.0,109450.0,1.51463475]
[1748358518037,0.064,109460.0,109450.0,1.284661]
[1748358518038,0.063,109460.0,109450.0,1.284661]
[1748358518335,0.063,109460.0,109450.0,1.5204296]
[1748358518540,0.063,109460.0,109450.0,1.0736696]
[1748358518940,0.062,109460.0,109450.0,1.0736696]
[1748358519143,0.062,109460.0,109450.0,0.838901]
[1748358519446,0.062,109460.0,109450.0,0.478221]
[1748358519645,0.1331,109460.0,109450.0,0.478221]
[1748358519942,0.062,109460.0,109450.0,0.7239896]
[1748358520149,0.6354443,109460.0,109450.0,0.478221]
[1748358520348,0.6354443,109460.0,109450.0,0.0645]
[1748358520349,1.4226843,109460.0,109450.0,0.0645]
[1748358520545,1.4837843,109460.0,109450.0,0.04757472]
[1748358520747,1.5425843,109460.0,109450.0,0.00112]
[1748358520951,1.5425843,109460.0,109450.0,0.001]
[1748358521247,1.5425843,109460.0,109450.0,0.183781]
[1748358521445,1.57987862,109460.0,109450.0,0.183781]
[1748358521649,1.5425843,109460.0,109450.0,0.183781]
[1748358522050,1.5798785,109460.0,109450.0,0.183781]
[1748358522439,1.5798785,109460.0,109450.0,0.4195496]
[1748358522440,0.7308,109460.0,109450.0,0.4195496]
[1748358522652,0.36093756,109470.0,109460.0,0.1826443]
[1748358522653,0.66506516,109470.0,109460.0,0.1826443]
[1748358522845,0.66506516,109470.0,109450.0,0.3247078]
[1748358522846,1.36731635,109470.0,109450.0,0.3147078]
[1748358523052,1.00651635,109470.0,109460.0,0.1826443]
[1748358523244,1.36731635,109470.0,109460.0,0.1826443]
[1748358523446,1.81443635,109470.0,109460.0,0.1826443]
[1748358523750,1.81443635,109470.0,109450.0,0.3207555]
[1748358523751,0.182644,109460.0,109450.0,0.3207555]
[1748358523945,0.893444,109460.0,109450.0,0.3206355]
[1748358524143,0.893444,109460.0,109450.0,0.3207555]
[1748358524948,0.893444,109460.0,109450.0,0.3197555]
[1748358524949,0.7108,109460.0,109450.0,0.3197555]
[1748358525342,0.4208,109460.0,109450.0,0.3798555]
[1748358525537,0.4208,109460.0,109450.0,0.4973555]
[1748358525739,0.4208,109460.0,109450.0,0.4983555]
[1748358526542,0.06,109460.0,109450.0,0.4983555]
[1748358526950,0.4208,109460.0,109450.0,0.4983555]
[1748358527148,0.06,109460.0,109450.0,0.4983555]
[1748358527750,0.034498,109460.0,109450.0,0.4983555]
[1748358528052,0.36093756,109470.0,109460.0,0.1826447]
[1748358528252,0.36093756,109470.0,109460.0,0.5623133]
[1748358528554,0.36093756,109470.0,109460.0,0.3265447]
[1748358529246,0.36193756,109470.0,109460.0,0.3265447]
[1748358529837,0.36193756,109470.0,109460.0,0.5623133]
[1748358530045,0.00113756,109470.0,109460.0,0.96955979]
[1748358530645,0.00113756,109470.0,109460.0,1.02536259]
[1748358530851,0.00213756,109470.0,109460.0,1.02536259]
[1748358531052,0.00213756,109470.0,109460.0,1.31091179]
[1748358531246,0.46217125,109500.0,109490.0,0.1825952]
[1748358531556,1.06204883,109500.0,109490.0,0.2952352]
[1748358531751,1.06204883,109500.0,109490.0,0.3555352]
[1748358532347,1.06404883,109500.0,109490.0,0.3555352]
[1748358532547,0.88147023,109500.0,109490.0,0.3555352]
[1748358532750,0.10337125,109500.0,109490.0,0.6498038]
[1748358532953,0.10337125,109500.0,109490.0,0.75351086]
[1748358533159,0.10337125,109500.0,109490.0,0.7071038]
[1748358533359,0.10337125,109500.0,109490.0,1.5151838]
[1748358533360,0.10537125,109500.0,109490.0,1.5151838]
[1748358533551,0.10537125,109500.0,109490.0,1.5251838]
[1748358533855,0.10537125,109500.0,109490.0,0.9286152]
[1748358534059,0.10437125,109500.0,109490.0,1.2894152]
[1748358534657,0.10237125,109500.0,109490.0,1.2894152]
[1748358535049,0.10237125,109500.0,109490.0,0.3686952]
[1748358535050,0.4618,109500.0,109490.0,0.3686952]
[1748358535249,1.7157271,109500.0,109490.0,0.01377213]
[1748358535450,1.4799585,109500.0,109490.0,0.1825952]
[1748358535755,1.0330785,109500.0,109490.0,0.1827152]
[1748358536054,1.0937785,109500.0,109490.0,0.2452152]
[1748358536253,0.6018,109500.0,109490.0,0.3578552]
[1748358536454,0.7212,109500.0,109490.0,0.4776552]
[1748358536654,0.7212,109500.0,109490.0,0.1827152]
[1748358536655,0.9037785,109500.0,109490.0,0.1827152]
[1748358536858,0.9037785,109500.0,109490.0,0.2952352]
[1748358536859,1.3816471,109500.0,109490.0,0.2952352]
[1748358537057,1.3816471,109500.0,109490.0,0.2953552]
[1748358537058,0.101,109500.0,109490.0,0.2953552]
[1748358537254,0.2171,109500.0,109490.0,0.3524552]
[1748358537460,0.5779,109500.0,109490.0,0.4141552]
[1748358537759,0.2171,109500.0,109490.0,0.4141552]
[1748358538348,0.101,109500.0,109490.0,0.4141552]
[1748358538767,0.1585,109500.0,109490.0,0.4141552]
[1748358538959,0.2171,109500.0,109490.0,0.4141552]
[1748358539169,0.2171,109500.0,109490.0,0.4572452]
[1748358539665,0.2171,109500.0,109490.0,0.47098315]
[1748358539963,0.101,109500.0,109490.0,0.57231114]
[1748358540153,0.101,109500.0,109490.0,1.29311114]
[1748358540463,0.001491,109520.0,109510.0,0.1825618]
[1748358540760,0.00012,109520.0,109510.0,0.4742618]
[1748358540966,0.11952,109520.0,109510.0,0.4742618]
[1748358541767,0.11952,109520.0,109510.0,0.2436618]
[1748358541958,1.3207338,109520.0,109510.0,0.1825618]
[1748358542266,1.4120239,109520.0,109510.0,0.1825619]
[1748358542457,1.3663846,109520.0,109510.0,0.1825619]
[1748358542657,1.130616,109520.0,109510.0,0.1825619]
[1748358542854,1.0849783,109520.0,109510.0,0.1825619]
[1748358543365,1.0849783,109520.0,109510.0,0.1826819]
[1748358543572,1.0879783,109520.0,109510.0,0.1826819]
[1748358543950,1.0849783,109520.0,109510.0,0.1826819]
[1748358544856,1.0849783,109520.0,109510.0,0.2427819]
[1748358545465,1.0849783,109520.0,109510.0,0.1826819]
[1748358546065,1.3207469,109520.0,109510.0,0.1826819]
[1748358546561,1.0849783,109520.0,109510.0,0.1826819]
[1748358546762,1.0849783,109520.0,109510.0,0.1825619]
[1748358546959,1.3207469,109520.0,109510.0,0.1825619]
[1748358547160,1.3207469,109520.0,109510.0,0.00012]
[1748358547361,1.3207469,109520.0,109510.0,0.1825619]
[1748358547664,1.3207469,109520.0,109510.0,0.1826819]
[1748358547865,1.3207469,109520.0,109510.0,0.00012]
[1748358548069,1.3207469,109520.0,109510.0,0.1826819]
[1748358548957,1.3207469,109520.0,109510.0,0.1825619]
[1748358549156,1.3207469,109520.0,109510.0,0.1826819]
[1748358549357,1.3207469,109520.0,109510.0,0.00012]
[1748358549558,1.3207469,109520.0,109510.0,0.1826819]
[1748358549859,1.3207469,109520.0,109510.0,0.00012]
[1748358550059,1.3207469,109520.0,109510.0,0.1826819]
[1748358550866,1.3227469,109520.0,109510.0,0.1826819]
[1748358551261,1.3247469,109520.0,109510.0,0.1826819]
[1748358551668,1.3247469,109520.0,109510.0,0.00012]
[1748358552062,1.3247469,109520.0,109510.0,0.1826819]
[1748358552569,1.3247469,109520.0,109510.0,0.00012]
[1748358552956,1.36131146,109520.0,109510.0,0.00012]
[1748358553567,0.1825619,109510.0,109500.0,0.00013756]
[1748358553768,1.7270305,109510.0,109500.0,0.18271616]
[1748358554366,1.76361719,109510.0,109500.0,0.18271616]
[1748358554768,1.76361719,109510.0,109500.0,0.18283616]
[1748358555570,1.08344859,109510.0,109500.0,0.18283616]
[1748358555874,1.08344859,109510.0,109500.0,0.25093616]
[1748358555875,1.52752859,109510.0,109500.0,0.25093616]
[1748358556169,1.08344859,109510.0,109500.0,0.25093616]
[1748358556359,1.52744859,109510.0,109500.0,0.25093616]
[1748358556556,1.52736859,109510.0,109500.0,0.31293616]
[1748358556959,1.08344859,109510.0,109500.0,0.31293616]
[1748358557165,1.490782,109510.0,109500.0,0.35990763]
[1748358557370,1.250782,109510.0,109500.0,0.35990763]
[1748358557771,0.806862,109510.0,109500.0,0.35990763]
[1748358558070,0.806862,109510.0,109500.0,0.31293616]
[1748358558571,0.8434306,109510.0,109500.0,0.31293616]
[1748358559660,0.806862,109510.0,109500.0,0.31293616]
[1748358559872,0.84341901,109510.0,109500.0,0.31293616]
[1748358560072,0.84341901,109510.0,109500.0,0.30293616]
[1748358560571,0.84341901,109510.0,109500.0,0.24093616]
[1748358560870,1.05342785,109510.0,109500.0,0.24093616]
[1748358561271,1.28919645,109510.0,109500.0,0.00025756]
[1748358561769,1.24919645,109510.0,109500.0,0.00025756]
[1748358562372,1.24919645,109510.0,109500.0,0.00013756]
[1748358562674,1.24919645,109510.0,109500.0,0.00025756]
[1748358562873,1.24919645,109510.0,109500.0,0.00013756]
[1748358563173,1.24919645,109510.0,109500.0,0.00025756]
[1748358563470,1.34051645,109510.0,109500.0,0.00025756]
[1748358563672,0.1825787,109500.0,109490.0,0.04704015]
[1748358563864,1.88745968,109500.0,109490.0,0.0333022]
[1748358564061,2.05121908,109500.0,109490.0,0.0334222]
[1748358564260,2.07359342,109500.0,109490.0,0.0334222]
[1748358564465,2.07359342,109500.0,109490.0,0.0333022]
[1748358564666,2.07359342,109500.0,109490.0,0.0334222]
[1748358565067,2.07359342,109500.0,109490.0,0.00012]
[1748358565267,2.07922706,109500.0,109490.0,0.00012]
[1748358566264,2.04266121,109500.0,109490.0,0.00012]
[1748358566962,2.04466121,109500.0,109490.0,0.00012]
[1748358567572,1.95144894,109500.0,109490.0,0.00012]
[1748358567875,1.95344894,109500.0,109490.0,0.00012]
[1748358572672,1.95012894,109500.0,109490.0,0.00012]
[1748358575882,1.94425466,109500.0,109490.0,0.00012]
[1748358576678,1.94425466,109500.0,109490.0,1e-07]
[1748358576879,0.1826287,109470.0,109460.0,0.1032]
[1748358577073,1.47412302,109470.0,109460.0,0.2223]
[1748358577273,1.59222302,109470.0,109460.0,0.3618454]
[1748358577580,1.59222302,109470.0,109460.0,0.17932]
[1748358577875,1.59222302,109470.0,109460.0,0.121]
[1748358578076,1.59222302,109470.0,109460.0,0.3037654]
[1748358578283,1.3623287,109470.0,109460.0,0.3056454]
[1748358578593,1.59222302,109470.0,109460.0,0.3057654]
[1748358578785,1.59222302,109470.0,109460.0,0.13676762]
[1748358578980,1.59222302,109470.0,109460.0,0.31941302]
[1748358579483,1.59222302,109470.0,109460.0,0.37721302]
[1748358579679,1.59222302,109470.0,109460.0,0.37921302]
[1748358579875,1.5981384,109470.0,109460.0,0.19656762]
[1748358580076,1.5981384,109470.0,109460.0,0.13876762]
[1748358580277,1.3623287,109470.0,109460.0,0.32141302]
[1748358580478,2.0401784,109470.0,109460.0,0.37921302]
[1748358580678,2.0401784,109470.0,109460.0,0.13876762]
[1748358580884,2.0401784,109470.0,109460.0,0.00412]
[1748358581087,2.07672628,109470.0,109460.0,0.00412]
[1748358581384,2.13322892,109470.0,109460.0,0.004]
[1748358581690,2.07672628,109470.0,109460.0,0.00412]
[1748358581882,1.9339656,109470.0,109460.0,0.00412]
[1748358582287,2.1697753,109470.0,109460.0,0.00412]
[1748358582581,2.11327266,109470.0,109460.0,0.00412]
[1748358582787,1.98734296,109470.0,109460.0,0.00412]
[1748358582976,2.18660478,109470.0,109460.0,0.00412]
[1748358584688,1.39887508,109470.0,109460.0,0.1867654]
[1748358584990,1.84095508,109470.0,109460.0,0.1867654]
[1748358585188,1.84095508,109470.0,109460.0,0.3660654]
[1748358585487,1.8044087,109470.0,109460.0,0.3660654]
[1748358586495,1.3623287,109470.0,109460.0,0.3660654]
[1748358586692,1.8044087,109470.0,109460.0,0.3660654]
[1748358587694,1.84092238,109470.0,109460.0,0.3660654]
[1748358588695,1.84093142,109470.0,109460.0,0.3660654]
[1748358589193,0.2526288,109470.0,109460.0,0.3660654]
[1748358589597,0.7792385,109470.0,109460.0,0.3660654]
[1748358589797,1.6833185,109470.0,109460.0,0.1833]
[1748358590095,1.6833185,109470.0,109460.0,0.00412]
[1748358590096,1.48404635,109470.0,109460.0,0.00412]
[1748358590296,1.6833185,109470.0,109460.0,0.004]
[1748358590495,1.71983608,109470.0,109460.0,0.004]
[1748358590691,1.71983608,109470.0,109460.0,0.00412]
[1748358592197,1.6833185,109470.0,109460.0,0.00412]
[1748358592499,1.71985522,109470.0,109460.0,0.00412]
[1748358593406,1.77635786,109470.0,109460.0,0.00412]
[1748358593789,1.77635786,109470.0,109460.0,0.004]
[1748358593790,1.86770986,109470.0,109460.0,0.004]
[1748358594688,1.86770986,109470.0,109460.0,0.00412]
[1748358594891,1.86770986,109470.0,109460.0,0.004]
[1748358595086,1.86770986,109470.0,109460.0,0.00412]
[1748358595600,1.8677361,109470.0,109460.0,0.00412]
[1748358595803,0.9764944,109470.0,109460.0,0.00412]
[1748358596010,0.91999176,109470.0,109460.0,0.2442654]
[1748358596303,1.03969176,109470.0,109460.0,0.06162]
[1748358596504,1.03969176,109470.0,109460.0,0.11822]
[1748358596894,1.27550146,109470.0,109460.0,0.11822]
[1748358597408,1.27550146,109470.0,109460.0,0.3008654]
[1748358597796,1.27550146,109470.0,109460.0,0.11822]
[1748358598592,1.71758146,109470.0,109460.0,0.11822]
[1748358598805,1.71758615,109470.0,109460.0,0.11822]
[1748358599003,1.71758615,109470.0,109460.0,0.06162]
[1748358600305,1.71758615,109470.0,109460.0,0.2442654]
[1748358600605,1.71758615,109470.0,109460.0,0.12142]
[1748358600806,1.48177645,109470.0,109460.0,0.3040654]
[1748358601007,1.71758615,109470.0,109460.0,0.12142]
[1748358602003,1.48177645,109470.0,109460.0,0.12142]
[1748358602302,1.7117769,109470.0,109460.0,0.12142]
[1748358602705,1.2696969,109470.0,109460.0,0.12142]
[1748358602904,1.7117369,109470.0,109460.0,0.12142]
[1748358603508,1.7117369,109470.0,109420.0,0.0058679]
[1748358603509,0.3608,109460.0,109420.0,0.0058679]
[1748358603694,0.1827122,109420.0,109410.0,0.04311]
[1748358604001,0.1827122,109420.0,109410.0,0.0185818]
[1748358604002,1.90632497,109420.0,109410.0,0.0185818]
[1748358604204,0.1827289,109410.0,109400.0,0.29179984]
[1748358604397,1.20080167,109410.0,109400.0,0.23529984]
[1748358604592,1.20080167,109410.0,109400.0,0.17809984]
[1748358604797,1.20080167,109410.0,109400.0,0.15110064]
[1748358605305,1.25730431,109410.0,109400.0,0.15110064]
[1748358605614,1.25213529,109410.0,109400.0,0.15110064]
[1748358605807,1.25213529,109410.0,109400.0,0.15122064]
[1748358606001,1.25827254,109410.0,109400.0,0.15110064]
[1748358606205,1.25827254,109410.0,109400.0,0.15122064]
[1748358606603,1.26027254,109410.0,109400.0,0.15122064]
[1748358606797,1.32137254,109410.0,109400.0,0.15122064]
[1748358607098,1.37787518,109410.0,109400.0,0.0731208]
[1748358607298,1.38187518,109410.0,109400.0,0.0731208]
[1748358607495,1.32537254,109410.0,109400.0,0.0731208]
[1748358608306,1.32537254,109410.0,109400.0,0.0730008]
[1748358608502,0.1827456,109400.0,109390.0,0.00013756]
[1748358608805,1.71340121,109400.0,109390.0,0.00013756]
[1748358609010,0.9978135,109400.0,109390.0,0.00025756]
[1748358609200,0.6042456,109400.0,109390.0,0.40859986]
[1748358609407,0.2527456,109400.0,109390.0,0.40859986]
[1748358610009,0.2547456,109400.0,109390.0,0.40859986]
[1748358610412,0.2557456,109400.0,109390.0,0.40859986]
[1748358611004,0.6165456,109400.0,109390.0,0.40859986]
[1748358611508,0.6145456,109400.0,109390.0,0.40859986]
[1748358611713,0.6155456,109400.0,109390.0,0.40859986]
[1748358611914,0.6145456,109400.0,109390.0,0.40859986]
[1748358612807,0.6145456,109400.0,109390.0,0.40959986]
[1748358613113,0.6135456,109400.0,109390.0,0.40959986]
[1748358615814,0.7137456,109400.0,109390.0,0.40947986]
[1748358616217,0.7137456,109400.0,109390.0,0.40959986]
[1748358616411,0.6135456,109400.0,109390.0,0.40959986]
[1748358616721,0.07,109400.0,109390.0,1.02650988]
[1748358616903,0.2527456,109400.0,109390.0,0.42959986]
[1748358617424,0.6135456,109400.0,109390.0,0.40959986]
[1748358617713,0.6035456,109400.0,109390.0,0.22687756]
[1748358617914,0.9537456,109400.0,109390.0,0.40951986]
[1748358618120,0.9537456,109400.0,109390.0,0.40963986]
[1748358618414,0.0513,109400.0,109390.0,0.78043986]
[1748358618711,0.2340456,109400.0,109390.0,0.41963986]
[1748358618918,0.5840456,109400.0,109390.0,0.41963986]
[1748358619317,0.9946456,109400.0,109390.0,0.41963986]
[1748358619706,0.9946456,109400.0,109390.0,0.1928823]
[1748358619911,1.59112203,109400.0,109330.0,0.35350673]
[1748358620109,0.182896,109310.0,109300.0,0.1533]
[1748358620308,0.903696,109310.0,109300.0,0.1533]
[1748358620507,0.903696,109310.0,109300.0,0.15980396]
[1748358620711,0.903696,109310.0,109300.0,0.2034]
[1748358621718,0.903696,109310.0,109300.0,0.32604]
[1748358621905,1.13980602,109310.0,109300.0,0.0377559]
[1748358622217,1.13980602,109310.0,109260.0,0.0489]
[1748358622218,0.182963,109270.0,109260.0,0.0489]
[1748358622412,0.182963,109270.0,109240.0,0.18959586]
[1748358622413,0.1829965,109250.0,109240.0,0.31223686]
[1748358622715,0.8216,109250.0,109240.0,0.32223686]
[1748358622914,0.7216,109250.0,109240.0,0.32235686]
[1748358623120,0.9145965,109250.0,109240.0,0.32235686]
[1748358623511,0.72267706,109250.0,109240.0,0.32235686]
[1748358623707,0.72267706,109250.0,109240.0,0.68770641]
[1748358623708,0.72367706,109250.0,109240.0,0.68770641]
[1748358623909,0.71367706,109250.0,109240.0,1.39209643]
[1748358624110,0.71467706,109250.0,109240.0,1.41209643]
[1748358625009,0.71467706,109250.0,109240.0,1.75197643]
[1748358625218,0.71467706,109250.0,109240.0,1.51558641]
[1748358625426,0.71467706,109250.0,109240.0,1.81029643]
[1748358625715,0.71467706,109250.0,109240.0,2.89825643]
[1748358626511,0.71467706,109250.0,109240.0,2.30773643]
[1748358626717,0.71467706,109250.0,109240.0,2.89789643]
[1748358626924,0.71467706,109250.0,109240.0,2.63789643]
[1748358627119,0.71467706,109250.0,109240.0,2.84789643]
[1748358627323,0.36093756,109260.0,109240.0,2.66460343]
[1748358627516,0.3608,109270.0,109260.0,0.1829795]
[1748358627717,0.6708,109270.0,109260.0,1.60616952]
[1748358627913,0.31,109270.0,109260.0,1.80328952]
[1748358628113,0.3608,109290.0,109280.0,0.182946]
[1748358628325,0.3608,109300.0,109290.0,0.1829292]
[1748358628528,0.6708,109300.0,109290.0,1.51943922]
[1748358628830,0.6708,109300.0,109290.0,1.57183922]
[1748358629019,0.6708,109300.0,109290.0,1.3357292]
[1748358630124,0.6708,109300.0,109290.0,1.3367292]
[1748358630518,0.6708,109300.0,109290.0,0.012]
[1748358630823,1.65686252,109300.0,109290.0,0.002]
[1748358631141,1.4207525,109300.0,109290.0,0.00212]
[1748358631333,1.4207525,109300.0,109290.0,0.12484]
[1748358632620,1.4217525,109300.0,109290.0,0.12384]
[1748358633128,1.4217525,109300.0,109290.0,0.12284]
[1748358633129,1.4237525,109300.0,109290.0,0.12284]
[1748358634226,1.4237525,109300.0,109290.0,0.00012]
[1748358634526,1.4237525,109300.0,109290.0,0.12284]
[1748358635128,0.9569125,109300.0,109290.0,0.3057693]
[1748358636237,0.9569125,109300.0,109290.0,0.0612093]
[1748358636434,0.1829962,109250.0,109230.0,0.0457548]
[1748358636625,0.89569062,109240.0,109230.0,0.64306562]
[1748358636822,0.93874112,109240.0,109230.0,0.81931814]